Cogmind - Beta 13 @@@ ROGUE MODE // 2024.04.19 @ 20:15:52 Player: leiavoia Result: Destroyed by D-53 Grenadier with Mini Grenade Launcher Performance ------------- Evolutions (0) 0 Regions Visited (4) 800 Robots Destroyed (40) 200 Value Destroyed (582) 582 Prototype IDs (5) 100 Alien Tech Used (0) 0 Bonus (0) 0 TOTAL SCORE: 1682 Bonus ------- None Cogmind --------- Core Integrity 0/250 Matter 300/300 Energy 96/100 System Corruption 2% Temperature Cool (29) Movement Core (100) Ox1 Location -9/Mines Parts ------- > --- POWER (1) -------- (None) > --- PROPULSION (2) --- (None) > --- UTILITY (2) ------ Small Storage Unit Core Shielding > --- WEAPON (2) ------- (None) > --- INVENTORY (8) ---- Medium Storage Unit High-capacity Matter Pod (200) Sensor Array Improved Terrain Scanner Seismic Detector Light Assault Rifle Autogun Peak State ------------ > --- POWER ------------ Light Nuclear Core > --- PROPULSION ------- (None) > --- UTILITY ---------- Improved Heat Sink Core Shielding > --- WEAPON ----------- Assault Rifle Light Assault Rifle > --- INVENTORY -------- Light Ion Engine Small Storage Unit Improved Terrain Scanner Small Laser [Rating: 9] Favorites ----------- Power Light Ion Engine Engine Light Ion Engine Power Core Light Nuclear Core Propulsion Hover Unit Hover Unit Hover Unit Utility Core Shielding Device Seismic Detector Storage High-capacity Matter Pod Protection Core Shielding Weapon Assault Rifle Energy Gun Small Laser Energy Cannon Beam Cannon Ballistic Gun Assault Rifle Ballistic Cannon Light Cannon Build | -11 -10 -10 -10 -9 ------- Run | Yrd Mat Min Exi Min Slots Evolved . | . . . . . Power . | . . . . . Propulsion . | . . . . . Utility . | . . . . . Weapon . | . . . . . Parts Attached 38 | 4 28 5 1 . Power 6 | . 4 2 . . Engine 5 | . 3 2 . . Core 1 | . 1 . . . Reactor . | . . . . . Propulsion 6 | . 6 . . . Treads . | . . . . . Leg . | . . . . . Wheel . | . . . . . Hover 6 | . 6 . . . Flight . | . . . . . Utility 10 | 1 6 2 1 . Device 5 | 1 4 . . . Storage 2 | . . 1 1 . Processor . | . . . . . Hackware . | . . . . . Protection 3 | . 2 1 . . Artifact . | . . . . . Weapon 16 | 3 12 1 . . Energy Gun 2 | 1 1 . . . Energy Cannon 1 | . . 1 . . Ballistic Gun 9 | 2 7 . . . Ballistic Cannon 4 | . 4 . . . Launcher . | . . . . . Special Weapon . | . . . . . Impact Weapon . | . . . . . Slashing Weapon . | . . . . . Piercing Weapon . | . . . . . Special Melee Weapon . | . . . . . Unidentified Prototypes . | . . . . . Parts Lost 11 | . 3 4 . 4 Power 3 | . 1 1 . 1 Propulsion 2 | . . 1 . 1 Utility 2 | . 1 1 . . Weapon 4 | . 1 1 . 2 Highest Loss Streak 4 | . 1 2 . 4 To Critical Strikes . | . . . . . Average Slot Usage (%) 81 | . 79 83 85 80 Engine 10 | . 6 13 14 12 Core 2 | . 4 . . . Hover 13 | . 11 15 14 12 Device 6 | . 14 . . . Storage 6 | . . 10 14 14 Protection 14 | . 13 15 14 14 Energy Gun 2 | . 4 . . . Energy Cannon 4 | . . 5 14 14 Ballistic Gun 16 | . 18 14 14 12 Ballistic Cannon 5 | . 4 8 . . Naked Turns . | . . . . . Heaviest Build 14 | 3 12 13 14 14 Greatest Support 12 | 3 12 12 6 6 Greatest Overweight (x) 3 | . 3 2 2 2 Average Overweight (x) . | . . 1 2 2 Largest Inventory Capacity 8 | 5 5 5 8 8 Average Capacity 5 | 5 5 5 5 8 Most Carried 7 | 5 5 5 6 7 Average Carried 4 | 3 4 4 5 6 Final Capacity 8 | 5 5 5 8 8 Final Carried 7 | 5 5 5 6 7 Class Distribution -------------------- 100% | Mutant Dominant Class ---------------- Mutant | -10/Materials Mutant | -10/Mines Mutant | -10/Exiles Mutant | -9/Mines Resources | -11 -10 -10 -10 -9 ----------- Run | Yrd Mat Min Exi Min Matter Collected 1067 | 287 471 289 10 10 Remotely . | . . . . . Salvage Created 1188 | 173 659 356 . . Parts 93 | 12 47 34 . . Haulers Intercepted 2 | . 2 . . . Recyclers Shooed 2 | 1 . 1 . . Parts Field Recycled . | . . . . . Retrieved Matter . | . . . . . Parts Self-Destructed . | . . . . . Prevented . | . . . . . Kills | -11 -10 -10 -10 -9 ------- Run | Yrd Mat Min Exi Min Combat Hostiles Destroyed 22 | . 11 11 . . Guns 16 | . 10 6 . . Cannons 6 | . 1 5 . . Classes Destroyed 9 | 2 5 2 . . Worker 2 | . . 2 . . Builder 1 | . . 1 . . Tunneler 5 | 4 1 . . . Hauler 2 | . 2 . . . Recycler 4 | 1 1 2 . . Operator 1 | . 1 . . . Watcher 3 | . 3 . . . Swarmer 14 | . 3 11 . . Grunt 8 | . 8 . . . Best Kill Streak 7 | 5 4 7 . . Combat Bots Only 4 | . 4 3 . . Max Kills in Single Turn 1 | 1 1 1 . . Gunslinging . | . . . . . Exploded . | . . . . . Melee . | . . . . . Uniques/NPCs Destroyed . | . . . . . Combat | -11 -10 -10 -10 -9 -------- Run | Yrd Mat Min Exi Min Hostile Shots Fired 144 | . 60 75 . 9 Missed 43 | . 20 22 . 1 Damage Taken 1181 | . 466 421 . 294 Core 259 | . 100 86 . 73 Absorbed by Shields . | . . . . . Redirected to Shielding 46 | . 19 16 . 11 Core Remaining (%) 100 | 100 . . . . Volleys Fired 111 | 16 58 34 . 3 Largest 2 | 2 2 2 . 2 Hottest 80 | 40 60 80 . 80 Shots Fired 217 | 32 113 68 . 4 Gun 173 | 32 106 34 . 1 Cannon 44 | . 7 34 . 3 Launcher . | . . . . . Special . | . . . . . Kinetic 188 | 32 96 59 . 1 Thermal 29 | . 17 9 . 3 Explosive . | . . . . . Electromagnetic . | . . . . . Robot Hit Streak 10 | 6 9 10 . 3 Robot Miss Streak 5 | 3 2 5 . 1 Penetration Max . | . . . . . Secondary Targets . | . . . . . Shots Hit Robots 125 | 14 80 28 . 3 Core Hits 61 | 8 36 16 . 1 Critical Kills . | . . . . . Critical Parts Destroyed 1 | . 1 . . . Critical Strikes 2 | . 1 1 . . Destroy 1 | . 1 . . . Blast 1 | . . 1 . . Melee Attacks . | . . . . . Impact . | . . . . . Slashing . | . . . . . Piercing . | . . . . . Sneak Attacks . | . . . . . Combat Hostiles . | . . . . . Follow-up Attacks . | . . . . . Damage Inflicted 1574 | 166 901 461 . 46 Guns 1226 | 166 815 233 . 12 Cannons 348 | . 86 228 . 34 Explosions . | . . . . . Melee . | . . . . . Ramming . | . . . . . Kinetic 1304 | 166 754 372 . 12 Thermal 270 | . 147 89 . 34 Explosive . | . . . . . Electromagnetic . | . . . . . Impact . | . . . . . Slashing . | . . . . . Piercing . | . . . . . Highest Corruption 2 | . 2 2 2 2 Average Corruption 1 | . 1 2 2 2 Corruption Purged . | . . . . . Corruption Blocked . | . . . . . Effects 20 | . 3 11 5 1 Message Errors 4 | . . 2 2 . Matter Fused 2 | . . 2 . . Heat Flow Errors 4 | . 1 1 1 1 Energy Discharges 6 | . 2 3 1 . Parts Fused 1 | . . 1 . . Data Loss (minor) 1 | . . . 1 . Misfires 1 | . . 1 . . Weapon Failures 1 | . . 1 . . Overload Shots . | . . . . . Overflow Damage . | . . . . . Projectiles . | . . . . . Explosions . | . . . . . Melee . | . . . . . Knockbacks 1 | . . 1 . . Impact . | . . . . . Kinetic 1 | . . 1 . . Secondary . | . . . . . Self-Inflicted Damage . | . . . . . Shots . | . . . . . Rammed . | . . . . . Targets Rammed . | . . . . . Kicked . | . . . . . Crushed . | . . . . . Highest Temperature 248 | . 191 121 116 248 Average Temperature 39 | . 35 29 60 90 Received Heat Transfer 225 | . 225 . . . Effects 1 | . . . . 1 Energy Bleed 1 | . . . . 1 Siege Activations . | . . . . . Robots Corrupted . | . . . . . Combat Hostiles . | . . . . . Parts Fried . | . . . . . Impact Corruptions . | . . . . . Robots Melted . | . . . . . Combat Hostiles . | . . . . . Parts Melted 1 | . . 1 . . Heat Transferred 584 | . 325 185 . 74 Parts Sabotaged . | . . . . . Parts Stolen . | . . . . . Parts Stripped . | . . . . . Power Chain Reactions . | . . . . . Alert | -11 -10 -10 -10 -9 ------- Run | Yrd Mat Min Exi Min Peak Influence 294 | 25 294 179 . 15 Initial 44 | . 16 44 . . Average 116 | 8 141 111 . . Maximum Alert Level 1 | . 1 . . . Low Security (%) 89 | 100 78 100 . 100 Level 1 10 | . 21 . . . Level 2 . | . . . . . Level 3 . | . . . . . Level 4 . | . . . . . Level 5 . | . . . . . High Security . | . . . . . Max Security . | . . . . . Squads Dispatched 3 | . 3 . . . Investigation 2 | . 2 . . . Extermination . | . . . . . Reinforcement 1 | . 1 . . . Assault . | . . . . . Garrison . | . . . . . Intercept . | . . . . . Searches Triggered . | . . . . . Construction Impeded . | . . . . . Haulers Reinforced . | . . . . . Active Scanning Responses . | . . . . . Cargo Convoy Interrupts . | . . . . . Stealth | -11 -10 -10 -10 -9 --------- Run | Yrd Mat Min Exi Min Distress Signals 2 | . 1 1 . . Communications Jammed . | . . . . . Distress Signals . | . . . . . Times Spotted 40 | . 26 12 . 2 Peak Tracking Total 8 | . 8 3 . 2 Tactical Retreats 4 | . 3 1 . . Traps | -11 -10 -10 -10 -9 ------- Run | Yrd Mat Min Exi Min Traps Triggered 3 | . 3 . . . Indirectly . | . . . . . Trap Hack Attempts . | . . . . . Triggered . | . . . . . Disarmed . | . . . . . Reprogrammed . | . . . . . Reused . | . . . . . Traps Extracted . | . . . . . Installed . | . . . . . Triggered . | . . . . . Machines | -11 -10 -10 -10 -9 ---------- Run | Yrd Mat Min Exi Min Machines Disabled 1 | . . . . 1 Max in Single Turn 1 | . . . . 1 Machines Repaired . | . . . . . Machines Dismantled . | . . . . . Machines Sabotaged . | . . . . . Overloaded Fab Kills . | . . . . . Hacking | -11 -10 -10 -10 -9 --------- Run | Yrd Mat Min Exi Min Machines Accessed 10 | . 9 . 1 . Terminals 7 | . 7 . . . Fabricators . | . . . . . Repair Stations . | . . . . . Recycling Units 2 | . 2 . . . Scanalyzers . | . . . . . Garrison Access . | . . . . . Total Hacks 28 | . 27 . 1 . Successful 15 | . 14 . 1 . Failed 13 | . 13 . . . Catastrophic 1 | . 1 . . . Database Lockouts . | . . . . . Manual 17 | . 17 . . . Terminals 23 | . 23 . . . Fabricators . | . . . . . Repair Stations . | . . . . . Recycling Units 4 | . 4 . . . Scanalyzers . | . . . . . Garrison Access . | . . . . . Terminal Hacks 9 | . 8 . 1 . Record 1 | . . . 1 . Part Schematic 1 | . 1 . . . Prototype ID Bank 3 | . 3 . . . Locate Traps 2 | . 2 . . . Surveillance Status 1 | . 1 . . . Hauler Manifests 1 | . 1 . . . Fabricator Hacks . | . . . . . Repair Station Hacks . | . . . . . Recycling Unit Hacks 2 | . 2 . . . Retrieve Components 2 | . 2 . . . Scanalyzer . | . . . . . Garrison Access Hacks . | . . . . . Unauthorized Hacks 4 | . 4 . . . Terminals 3 | . 3 . . . Assimilate 1 | . 1 . . . Botnet 1 | . 1 . . . Operators 1 | . 1 . . . Fabricators . | . . . . . Repair Stations . | . . . . . Recycling Units 1 | . 1 . . . Reject 1 | . 1 . . . Scanalyzers . | . . . . . Garrison Access . | . . . . . Data Cores Recovered . | . . . . . Used . | . . . . . Hacking Detections 7 | . 7 . . . Full Trace Events 3 | . 3 . . . Feedback Events 2 | . 2 . . . Corruption 2 | . 2 . . . Feedback Blocked . | . . . . . Robot Schematics Acquired . | . . . . . Robots Built . | . . . . . Authchips . | . . . . . Time . | . . . . . Total Robot Build Rating . | . . . . . Part Schematics Acquired 1 | . 1 . . . Parts Built . | . . . . . Authchips . | . . . . . Time . | . . . . . Total Part Build Rating . | . . . . . Parts Repaired . | . . . . . Time . | . . . . . Parts Recycled . | . . . . . Recycled Matter . | . . . . . Retrieved Matter . | . . . . . Retrieved Components 7 | . 7 . . . Parts Scanalyzed . | . . . . . Part Schematics Acquired . | . . . . . Parts Damaged . | . . . . . Bothacking | -11 -10 -10 -10 -9 ------------ Run | Yrd Mat Min Exi Min Used RIF Installer . | . . . . . Robots Hacked . | . . . . . Non-combat . | . . . . . Combat . | . . . . . Robot Hacks Applied . | . . . . . Relay Couplers Released . | . . . . . Fabnet Peak Effective % . | . . . . . Robots Rewired . | . . . . . Allies Hacked . | . . . . . Hacks Repelled . | . . . . . Allies | -11 -10 -10 -10 -9 -------- Run | Yrd Mat Min Exi Min Total Allies . | . . . . . Largest Group . | . . . . . Highest-Rated Group . | . . . . . Highest-Rated Ally . | . . . . . Total Orders . | . . . . . Ally Attacks . | . . . . . Total Damage . | . . . . . Kills . | . . . . . Allies Corrupted . | . . . . . Allies Melted . | . . . . . Intel | -11 -10 -10 -10 -9 ------- Run | Yrd Mat Min Exi Min Robot Analysis Total . | . . . . . Derelict Logs Recovered 2 | . . 2 . . Drone Launches . | . . . . . Drone Recoveries . | . . . . . Exploration | -11 -10 -10 -10 -9 ------------- Run | Yrd Mat Min Exi Min Turns Passed 2410 | 99 1077 841 300 93 Spaces Moved 1670 | 87 899 471 166 47 Core 301 | 87 214 . . . Treads . | . . . . . Legs . | . . . . . Wheels . | . . . . . Hover 1369 | . 685 471 166 47 Flight . | . . . . . Fastest Speed 50 | 50 50 56 180 180 Average Speed 115 | 50 87 152 180 180 Slowest Speed 200 | 50 200 180 180 180 Overloaded Moves . | . . . . . Propulsion Burnouts . | . . . . . Robots Hopped . | . . . . . Cave-ins Triggered . | . . . . . Exploration Rate (%) 51 | 4 98 88 53 15 Regions Visited 4 Branch Regions 3 Pre-discovered Areas 3 | . . 2 1 . Known Exits Taken . | . . . . . Unknown Exits Taken 4 | 1 1 1 1 . Scrap Searched 2 | . . 1 . 1 Spaces Dug . | . . . . . Terrain Destroyed . | . . . . . Melee . | . . . . . Projectile . | . . . . . AOE . | . . . . . Terrain Rammed . | . . . . . Walls Destroyed . | . . . . . Machines Disabled . | . . . . . Actions | -11 -10 -10 -10 -9 --------- Run | Yrd Mat Min Exi Min Total 1935 | 111 1079 526 168 51 Wait 84 | . 69 15 . . Move 1666 | 86 898 470 165 47 Hop . | . . . . . Pick Up 16 | 5 8 1 1 1 Fast Attach 24 | 3 18 2 1 . Attach 7 | . 6 1 . . Detach 4 | . 4 . . . Swap 7 | 1 4 2 . . Drop 16 | . 14 1 1 . Fire 111 | 16 58 34 . 3 Melee . | . . . . . Ram . | . . . . . Kick . | . . . . . Crush . | . . . . . Escape Stasis . | . . . . . Rewire . | . . . . . Trap . | . . . . . Miscellaneous . | . . . . . Route ------- -11/Scrapyard -10/Materials (discovered 4 exits: [*Mat x3] / [*Min]) -10/Mines (discovered 4 exits: [*Mat x2] / *Exi / [*Sub]) -10/Exiles -9/Mines (discovered 1 exit: [*Mat]) History --------- Turn | Location | Event 16 | -11/Scrapyard | Discovered new exit (range 16) 100 | -11/Scrapyard | Entered Materials 337 | -10/Materials | Build established: Mutant 439 | -10/Materials | Discovered new exit (range 13) 745 | -10/Materials | Discovered new exit (range 12) 855 | -10/Materials | Discovered new exit (range 4) 1075 | -10/Materials | Discovered new exit (range 7) 1177 | -10/Materials | Entered Mines 1191 | -10/Mines | Core integrity fell below 50% 1218 | -10/Mines | Deemed a non-threat by the Exiles lab entrance 1218 | -10/Mines | Discovered new exit (range 5) 1264 | -10/Mines | Discovered new exit (range 5) 1324 | -10/Mines | Discovered new exit (range 9) 1658 | -10/Mines | A weapon hastily lodged in a ceiling crevice suddenly fell to the ground 1770 | -10/Mines | Discovered new exit (range 10) 1775 | -10/Mines | Learned location of Mines (-9) 1804 | -10/Mines | Learned location of Storage (-9) 2018 | -10/Mines | Entered Exiles 2062 | -10/Exiles | Met 8R-AWN 2090 | -10/Exiles | Met EX-HEX 2173 | -10/Exiles | Met EX-DEC 2204 | -10/Exiles | Learned location of Zion (-6) 2302 | -10/Exiles | Discovered new exit (range 11) 2318 | -10/Exiles | Entered Mines 2332 | -9/Mines | Discovered new exit (range 7) 2396 | -9/Mines | Assembled infested the area 2404 | -9/Mines | Core integrity fell below 20% 2411 | -9/Mines | Destroyed by D-53 Grenadier with Mini Grenade Launcher Last Messages --------------- GOAL=ESCAPE 02320_ Searching scrap... 02320_ Found Beam Rifle. 02320_ Found Autogun. 02320_ Found 35 Matter. 02321_ Acquired 10 matter. 02324_ Acquired Autogun. 02332_ EXIT=FOUND 02386_ System corrupted: Heat flow error (+266). 02389_ Overheating: Energy bleed (-12). 02396_ ALERT: Infestation in the mines, dispatching Demolisher response squad. 02403_ C-30 ARC bursts open, deploying its payload. 02403_ D-53 Grenadier unfolds itself. 02405_ Lgt. Ion Engine destroyed. 02405_ Assault Rifle destroyed. 02405_ Hover Unit destroyed. 02407_ K-01 Serf destroyed. 02411_ Beam Cannon destroyed. Map ----- +----------------------------------------------------+ | ?????????????????????????????????????????????????? | | ?????????????????????????????????????????????????? | | ?????????????????????????????????????????????????? | | ?????????????????????????????????????????????????? | | ?????????????????????????????????????????????????? | | ?????????????????????????????????????????????????? | | ?????????????????????????????????????????????????? | | ?????????????????????????????????????????????????? | | ?????????????????????????????????????????????????? | | ?????????????????????????????????????????????????? | | ?????????????????????????????????????????????????? | | ?????????????????????????????????????????????????? | | ?????????????????????????????????????????????????? | | ?????????????????????????????????????????????????? | | ?????????????????????????????????????????????????? | | ?????????????????????????????????????????????????? | | ?????????????????????????????????????????????????? | | ?????????????????????????????????????????????????? | | ?????????????????????????????????????????????????? | | ?????????????????????????????????????????????????? | | ??????####????????????######?????#???????????????? | | ?????## ##?????????### ##### #???????????????? | | ?????# #?????????# u #???????????????? | | ?????# #####?????# ####???????????????? | | ????## #?# ?????# #??????????????????? | | ????# #??# #?????# @ #??????????????????? | | ????# ##?# ###??## #??????????????????? | | ????## ### ### #??????????????????? | | ?????## ## % ##??????????????????? | | ??????# d # ##???????????????????? | | ####### d% ######????????????????????? | | # ##?????????????????????????? | | """ #??????????????????????????? | | [ #### """ # #??????????????????????????? | | % ##??# """ #### ##??????????????????????????? | | ###??# ##??####???????????????????????????? | | #????# #??????????????????????????????????? | | ?????# #?????????????????????????????????? | | ?????## < #????????????????????????????????? | | ??????## #???????????????????????????????? | | ???????## ## #???????????????????????????????? | | ????????#####?# ##???????????????????????????????? | | ???????????????##????????????????????????????????? | | ?????????????????????????????????????????????????? | | ?????????????????????????????????????????????????? | | ?????????????????????????????????????????????????? | | ?????????????????????????????????????????????????? | | ?????????????????????????????????????????????????? | | ?????????????????????????????????????????????????? | | ?????????????????????????????????????????????????? | +----------------------------------------------------+ Best States ------------- Heat Dissipation 39 Energy Generation 14 Energy Capacity 160 Matter Stores 500 Matter Capacity 500 Sight Range 16 Robot Scan Range 14 Terrain Scan Density 10 Armor Coverage 150 Core Shielding 20 Evasion (%) 53 Item Schematics ----------------- Lrg. Storage Unit | -10/Materials | Hacked Robot Schematics ------------------ None Fabricated ------------ Nothing Alien Tech Used ----------------- None Achievements -------------- None Challenges ------------ None Game ------ Seed BombGyrokineticAccelerator Manual? 0 Play Time 00:20:34 Cumulative 1076.2 hours Start 2024.04.19 @ 19:53:21 End 2024.04.19 @ 20:15:52 Sessions 1 Manual Loads 0 Difficulty Rogue Special Mode None Game No. 230 Rogue 198 Adventurer 31 Explorer 1 Win Type - Total 49 Types 33/1/7/7/0/0/1/0/0 Lore% 84 Gallery% 90 Achievement% 80 Wizard Run 0 Options --------- Layout 1 ASCII 0 Keyboard 0 Movement Arrows Keybinds 0 Fullscreen 1 Font 24/Terminus Map View 50x40 Zoom Use 0% Tactical HUD 1 Map Filters NONE Filters NONE Steam 1 RUN: 79111c55-5cdb-47ba-970d-59f74b02bb66